Cogmind - Beta 16 --- EXPLORER MODE // 2026.01.27 @ 13:07:30 Player: K.K.Y. Result: Destroyed by L-41 Fighter with Axe Performance ------------- Evolutions (4) 2000 Regions Visited (6) 1200 Robots Destroyed (92) 460 Value Destroyed (3447) 3447 Prototype IDs (12) 240 Alien Tech Used (0) 0 Bonus (2000) 2000 TOTAL SCORE: 9347 Bonus ------- Delivered SUBCON Basin 2000 Cogmind --------- Core Integrity 0/850 Matter 300/300 Energy 100/100 System Corruption 12% Temperature Cool (0) Movement Treading (225) Ox1 Location -6/Factory Parts ------- > --- POWER (2) -------- (None) > --- PROPULSION (4) --- Advanced Treads Advanced Treads > --- UTILITY (7) ------ Huge Storage Unit > --- WEAPON (3) ------- (None) > --- INVENTORY (25) --- Advanced Heat Sink Improved Cooling System Improved Cooling System Large Storage Unit Huge Storage Unit Advanced Sensor Array Experimental Sensor Array IFF Parser Cloaking Device EM Disruption Field Authchip [Device] Authchip [Device] Authchip [Armor] Authchip [Weapon] Tech Extrapolator System Restoration Module Mining Laser Plasma Cutter Multitool Peak State ------------ > --- POWER ------------ Angular Momentum Engine Fission Core > --- PROPULSION ------- Improved Treads Improved Medium Treads Improved Medium Treads > --- UTILITY ---------- Improved Cooling System Huge Storage Unit Structural Scanner Improved Trap Scanner Medium Armor Plating Medium Armor Plating Force Field > --- WEAPON ----------- Heavy Plasma Cannon Heavy Plasma Cannon Makeshift Spear > --- INVENTORY -------- Makeshift Power Source Light Angular Momentum Engine Large Storage Unit Advanced Sensor Array Experimental Sensor Array Medium Armor Plating Improved Light Armor Plating Authchip [Device] Authchip [Device] Authchip [Armor] Authchip [Weapon] Tech Extrapolator System Restoration Module Improved EM Pulse Cannon Mining Laser Plasma Cutter Multitool [Rating: 62] Favorites ----------- Power Makeshift Power Source Engine Makeshift Power Source Power Core Light Fission Core Propulsion Light Treads Treads Light Treads Utility Medium Armor Plating Device Structural Scanner Storage Huge Storage Unit Protection Medium Armor Plating Weapon Makeshift Spear Energy Gun Particle Gun Energy Cannon Heavy Plasma Cannon Ballistic Gun Gauss Rifle Ballistic Cannon Battle Cannon Special Weapon Mining Laser Impact Weapon Power Maul Piercing Weapon Makeshift Spear Build | -11 -10 -10 -10 -9 -9 -6 ------- Run | Yrd Mat Min Sub Rec Scr Fac Slots Evolved 9 | . 1 . . . . 8 Power 1 | . . . . . . 1 Propulsion 2 | . . . . . . 2 Utility 5 | . 1 . . . . 4 Weapon 1 | . . . . . . 1 Parts Attached 61 | 6 7 5 10 . 5 28 Power 8 | 1 . . 2 . 1 4 Engine 6 | 1 . . 2 . 1 2 Core 2 | . . . . . . 2 Reactor . | . . . . . . . Propulsion 15 | 2 1 2 2 . 2 6 Treads 15 | 2 1 2 2 . 2 6 Leg . | . . . . . . . Wheel . | . . . . . . . Hover . | . . . . . . . Flight . | . . . . . . . Utility 21 | 1 3 2 4 . 1 10 Device 9 | . 2 . 1 . . 6 Storage 3 | 1 1 . 1 . . . Processor . | . . . . . . . Hackware . | . . . . . . . Protection 9 | . . 2 2 . 1 4 Artifact . | . . . . . . . Weapon 17 | 2 3 1 2 . 1 8 Energy Gun 7 | 2 1 1 . . . 3 Energy Cannon 5 | . 1 . . . 1 3 Ballistic Gun 1 | . . . . . . 1 Ballistic Cannon 1 | . . . 1 . . . Launcher . | . . . . . . . Special Weapon 1 | . 1 . . . . . Impact Weapon 1 | . . . . . . 1 Slashing Weapon . | . . . . . . . Piercing Weapon 1 | . . . 1 . . . Special Melee Weapon . | . . . . . . . Unidentified Prototypes . | . . . . . . . Parts Lost 35 | . 1 . 1 . . 33 Power 6 | . . . . . . 6 Propulsion 5 | . . . . . . 5 Utility 14 | . 1 . . . . 13 Weapon 10 | . . . 1 . . 9 Highest Loss Streak 6 | . 1 . 1 . . 6 To Critical Strikes . | . . . . . . . Average Backups 16 | . 11 14 13 11 21 20 Power . | . . . . . 1 . Propulsion . | . 1 1 1 . 1 . Utility 11 | . 9 12 10 8 13 13 Weapon 2 | . 1 1 1 1 2 3 Tool/Special . | . . . . . . . Unused Backups 28 | . 1 . 3 3 4 17 Power 1 | . . . . . 1 . Propulsion 2 | . 1 . 1 . . . Utility 22 | . . . 2 3 2 15 Weapon 1 | . . . . . 1 . Tool/Special 2 | . . . . . . 2 Average Slot Usage (%) 87 | . 93 99 99 100 99 65 Engine 9 | . 12 12 12 12 12 4 Core 1 | . . . . . . 4 Treads 19 | . 25 25 25 25 25 8 Device 14 | . 18 12 12 12 12 17 Storage 9 | . 12 12 12 12 12 6 Protection 8 | . . 11 12 12 12 5 Energy Gun 5 | . 20 12 7 . . 2 Energy Cannon 5 | . 4 12 6 . 10 5 Ballistic Gun 1 | . . . . . . 3 Ballistic Cannon 2 | . . . 4 12 1 . Impact Weapon 1 | . . . . . . 4 Piercing Weapon 4 | . . . 2 12 12 . Peak Build Rating 62 | 6 11 13 38 38 33 62 Average Rating 30 | 5 10 12 17 29 30 49 On Entrance 17 | . 6 10 13 38 22 33 Avg Prop Armor Cover (%) . | . . . . . . . Naked Turns . | . . . . . . . Heaviest Build 152 | 18 33 39 97 97 113 152 Greatest Support 83 | 40 40 40 40 40 53 83 Greatest Overweight (x) 31 | . . . 2 2 2 31 Average Overweight (x) . | . . . . . 1 2 Largest Inventory Capacity 25 | 10 15 15 25 25 25 25 Average Capacity 20 | 8 13 15 16 20 23 25 Most Carried 25 | 2 15 15 25 25 25 25 Average Carried 17 | . 11 14 16 19 21 20 Final Capacity 25 | 10 15 15 25 15 25 25 Final Carried 25 | 2 15 15 25 14 22 19 Class Distribution -------------------- 70% | Hacker-Mutant 18% | Derelict-Mutant 10% | Scavenger-Mutant Dominant Class ---------------- Hacker-Mutant | -10/Materials Hacker-Mutant | -10/Mines Hacker-Mutant | -10/Subcaves Derelict-Mutant | -9/Recycling Hacker-Mutant | -9/Scraptown Hacker-Mutant | -6/Factory Resources | -11 -10 -10 -10 -9 -9 -6 ----------- Run | Yrd Mat Min Sub Rec Scr Fac Matter Collected 1580 | 260 82 120 379 77 80 582 Remotely . | . . . . . . . Salvage Created 3993 | 144 529 195 534 275 . 2316 Parts 177 | 7 33 6 42 10 . 79 Haulers Intercepted 2 | . 2 . . . . . Recyclers Shooed 2 | . . . . 1 . 1 Parts Field Recycled . | . . . . . . . Retrieved Matter . | . . . . . . . Parts Self-Destructed . | . . . . . . . Prevented . | . . . . . . . Parts Restored . | . . . . . . . Kills | -11 -10 -10 -10 -9 -9 -6 ------- Run | Yrd Mat Min Sub Rec Scr Fac Combat Hostiles Destroyed 72 | . 10 6 13 3 . 40 Melee 7 | . . . . 2 . 5 Guns 26 | . 6 3 6 . . 11 Cannons 23 | . 4 2 7 1 . 9 AOE 5 | . . . . . . 5 Classes Destroyed 15 | 2 6 . 2 1 . 4 Builder 2 | . 2 . . . . . Tunneler 4 | 4 . . . . . . Hauler 2 | . 2 . . . . . Recycler 4 | 1 . . . 2 . 1 Turret 2 | . . . 2 . . . Watcher 6 | . 3 . . . . 3 Swarmer 15 | . 2 2 4 . . 7 Grunt 22 | . 5 4 . . . 13 Duelist 4 | . . . . . . 4 Sentry 7 | . . . . 3 . 4 Hunter 4 | . . . . . . 4 Programmer 7 | . . . . . . 7 Behemoth 1 | . . . . . . 1 Artisan 3 | . . . 3 . . . Subdweller 12 | . 3 . 9 . . . Best Kill Streak 6 | 3 3 2 6 2 . 4 Combat Bots Only 4 | . 3 2 4 1 . 4 Max Kills in Single Turn 3 | 1 1 1 2 1 . 3 Gunslinging . | . . . . . . . Exploded 2 | . . . . . . 2 Melee 1 | . . . . 1 . 1 Uniques/NPCs Destroyed . | . . . . . . . Combat | -11 -10 -10 -10 -9 -9 -6 -------- Run | Yrd Mat Min Sub Rec Scr Fac Hostile Shots Fired 744 | . 31 23 82 6 . 602 Missed 216 | . 11 4 29 2 . 170 Hits 528 | . 20 19 53 4 . 432 Melee 40 | . . . . . . 40 Projectile 488 | . 20 19 53 4 . 392 Critical Strikes 21 | . 1 . 1 . . 19 Part Disruptions 1 | . . . . . . 1 Damage Taken 5562 | . 239 135 488 38 . 4662 Core 1083 | . 92 16 100 20 . 855 Absorbed by Shields 95 | . . . . . . 95 Ignored by Resistances 3375 | . 115 86 304 23 . 2847 Core Remaining (%) 54 | 100 . . . . 8 . Volleys Fired 284 | 11 36 13 77 7 . 140 Largest 2 | 2 2 2 2 1 . 2 Hottest 180 | 90 165 125 165 33 . 180 Shots Fired 522 | 22 70 26 148 8 . 248 Gun 267 | 22 53 13 55 . . 124 Cannon 232 | . 16 13 71 8 . 124 Launcher . | . . . . . . . Special 23 | . 1 . 22 . . . Kinetic 67 | . . . 22 8 . 37 Thermal 392 | 22 70 26 126 . . 148 Explosive . | . . . . . . . Electromagnetic 63 | . . . . . . 63 Robot Hit Streak 45 | 19 20 18 27 12 . 45 Robot Miss Streak 2 | . 1 1 1 . . 2 Penetration Max . | . . . . . . . Secondary Targets 2 | . 1 . . . . 1 Max Gunslinging Chain 1 | . 1 . . . . 1 Shots Hit Robots 404 | 19 52 20 75 10 . 228 Core Hits 142 | 6 24 6 27 5 . 74 Critical Kills 4 | . . 1 . . . 3 Critical Parts Destroyed 6 | . . . . . . 6 Critical Strikes 24 | 1 1 3 3 1 . 15 Burn 10 | 1 1 2 3 . . 3 Meltdown 3 | . . 1 . . . 2 Destroy 1 | . . . . . . 1 Blast 1 | . . . . 1 . . Corrupt 2 | . . . . . . 2 Smash 7 | . . . . . . 7 Melee Attacks 24 | . . . 5 2 . 17 Impact 15 | . . . . . . 15 Slashing . | . . . . . . . Piercing 9 | . . . 5 2 . 2 Sneak Attacks . | . . . . . . . Combat Hostiles . | . . . . . . . Follow-up Attacks . | . . . . . . . Damage Inflicted 9279 | 218 777 334 1268 246 . 6436 Guns 3665 | 218 564 161 551 . . 2171 Cannons 4054 | . 213 173 717 186 . 2765 Explosions 622 | . . . . . . 622 Melee 898 | . . . . 60 . 838 Ramming 40 | . . . . . . 40 Kinetic 1133 | . . . 294 186 . 653 Thermal 5748 | 218 777 334 974 . . 3445 Explosive 450 | . . . . . . 450 Electromagnetic 1010 | . . . . . . 1010 Impact 769 | . . . . . . 769 Slashing . | . . . . . . . Piercing 129 | . . . . 60 . 69 Highest Corruption 12 | . 1 1 1 1 . 12 Average Corruption 3 | . 1 1 1 1 . 6 Corruption Purged . | . . . . . . . Corruption Blocked . | . . . . . . . Effects 154 | . 1 2 25 14 . 112 Message Errors 37 | . . 1 3 8 . 25 Matter Fused 38 | . 1 . 8 3 . 26 Heat Flow Errors 22 | . . . 5 1 . 16 Energy Discharges 15 | . . . 4 . . 11 Parts Fused 1 | . . . . . . 1 Data Loss (minor) 13 | . . 1 1 1 . 10 Data Loss (major) 11 | . . . 1 . . 10 Misfires 8 | . . . 2 1 . 5 Alerts 5 | . . . 1 . . 4 Misdirections 1 | . . . . . . 1 Weapon Failures 3 | . . . . . . 3 Overload Shots . | . . . . . . . Overflow Damage 362 | . . . 8 . . 354 Projectiles 39 | . . . 8 . . 31 Explosions 38 | . . . . . . 38 Melee 285 | . . . . . . 285 Knockbacks 7 | . . . 3 . . 4 Impact 4 | . . . . . . 4 Kinetic 3 | . . . 3 . . . Secondary . | . . . . . . . Self-Inflicted Damage 230 | . . . . . . 230 Shots 6 | . . . . . . 6 Rammed 8 | . . . . . . 8 Targets Rammed 8 | . . . . . . 8 Kicked . | . . . . . . . Crushed . | . . . . . . . Highest Temperature 683 | 120 509 480 251 167 . 683 Average Temperature 107 | 39 123 187 50 47 . 122 Received Heat Transfer 1422 | . 84 93 141 18 . 1086 Effects 30 | . 11 2 . . . 17 Shutdowns 6 | . 2 1 . . . 3 Energy Bleed 2 | . . 1 . . . 1 Interference 11 | . 4 . . . . 7 Matter Decay 1 | . . . . . . 1 Damage (minor) 5 | . 1 . . . . 4 Damage (major) 4 | . 3 . . . . 1 Damage (core) 1 | . 1 . . . . . Siege Activations . | . . . . . . . Martial Activations . | . . . . . . . Shielding Activations . | . . . . . . . Robots Disrupted . | . . . . . . . Combat Hostiles . | . . . . . . . Robots Corrupted 7 | . . . . . . 7 Combat Hostiles 7 | . . . . . . 7 Parts Fried 14 | . . . . . . 14 Impact Corruptions 12 | . . . . . . 12 Robots Melted 4 | . . 1 . . . 3 Combat Hostiles 4 | . . 1 . . . 3 Parts Melted 34 | 1 4 2 5 . . 22 Heat Transferred 11676 | 681 1962 888 2405 . . 5740 Parts Sabotaged . | . . . . . . . Parts Stolen . | . . . . . . . Parts Stripped . | . . . . . . . Power Chain Reactions 2 | . . . . . . 2 Alert | -11 -10 -10 -10 -9 -9 -6 ------- Run | Yrd Mat Min Sub Rec Scr Fac Maximum Alert Level . | . . . . . . . Low Security (%) 100 | 100 100 100 . 100 . 100 Level 1 . | . . . . . . . Level 2 . | . . . . . . . Level 3 . | . . . . . . . Level 4 . | . . . . . . . Level 5 . | . . . . . . . High Security . | . . . . . . . Max Security . | . . . . . . . Peak Influence 105 | 10 70 66 . 20 . 105 Initial . | . . . . . . . Average 7 | 2 9 6 . . . 9 Influence Increases 1836 | 25 226 170 165 96 . 1154 Destroy 0b10 Robot/C 1240 | . 140 120 120 60 . 800 Destroy 0b10 Robot/NC 90 | 25 35 . . 10 . 20 Destroy Leader 296 | . 40 30 . . . 226 Successful Hack 32 | . 6 . . 26 . . Disable Machine 56 | . 4 8 . . . 44 Destroy Structure 77 | . 1 12 . . . 64 Lose Combat Pursuer 45 | . . . 45 . . . Influence Decreases 1836 | 25 226 170 165 96 . 1154 Time Decay 1672 | 25 226 170 165 96 . 990 Lost Part 164 | . . . . . . 164 Squads Dispatched 15 | . 1 . . . . 14 Investigation 4 | . 1 . . . . 3 Extermination 7 | . . . . . . 7 Reinforcement 1 | . . . . . . 1 Assault . | . . . . . . . Garrison 3 | . . . . . . 3 Intercept . | . . . . . . . Searches Triggered . | . . . . . . . Construction Impeded 1 | . . . . . . 1 Haulers Reinforced . | . . . . . . . Active Scanning Responses . | . . . . . . . Cargo Convoy Interrupts . | . . . . . . . Stealth | -11 -10 -10 -10 -9 -9 -6 --------- Run | Yrd Mat Min Sub Rec Scr Fac Distress Signals 2 | . . . . . . 2 Communications Jammed . | . . . . . . . Distress Signals . | . . . . . . . Times Spotted 88 | . 14 6 16 3 . 49 Peak Tracking Total 6 | . 3 2 6 1 . 5 Tactical Retreats 2 | . . . 2 . . . Traps | -11 -10 -10 -10 -9 -9 -6 ------- Run | Yrd Mat Min Sub Rec Scr Fac Traps Triggered 2 | . . . . . . 2 Indirectly . | . . . . . . . Trap Hack Attempts . | . . . . . . . Triggered . | . . . . . . . Disarmed 3 | . 3 . . . . . Reprogrammed . | . . . . . . . Reused . | . . . . . . . Traps Extracted . | . . . . . . . Installed . | . . . . . . . Triggered . | . . . . . . . Machines | -11 -10 -10 -10 -9 -9 -6 ---------- Run | Yrd Mat Min Sub Rec Scr Fac Machines Disabled 16 | . 1 2 2 . . 11 Max in Single Turn 9 | . 1 1 1 . . 9 Machines Repaired . | . . . . . . . Machines Dismantled . | . . . . . . . Machines Sabotaged . | . . . . . . . Overloaded Fab Kills . | . . . . . . . Hacking | -11 -10 -10 -10 -9 -9 -6 --------- Run | Yrd Mat Min Sub Rec Scr Fac Machines Accessed 27 | . 10 . 4 10 . 3 Terminals 17 | . 8 . . 6 . 3 Fabricators . | . . . . . . . Repair Stations . | . . . . . . . Recycling Units 6 | . 2 . . 4 . . Scanalyzers . | . . . . . . . Garrison Access . | . . . . . . . Total Hacks 49 | . 14 . 7 19 . 9 Successful 36 | . 13 . 7 14 . 2 Failed 13 | . 1 . . 5 . 7 Catastrophic 2 | . . . . . . 2 Database Lockouts . | . . . . . . . Manual 20 | . 10 . . 10 . . Terminals 33 | . 12 . . 12 . 9 Fabricators . | . . . . . . . Repair Stations . | . . . . . . . Recycling Units 9 | . 2 . . 7 . . Scanalyzers . | . . . . . . . Garrison Access . | . . . . . . . Terminal Hacks 16 | . 3 . 7 4 . 2 Record 4 | . . . 4 . . . Part Schematic 4 | . . . . 2 . 2 Robot Analysis 3 | . 1 . . 2 . . Open Door 1 | . . . 1 . . . Disarm Traps 2 | . 2 . . . . . Proto ID Catalog 1 | . . . 1 . . . Release Object 1 | . . . 1 . . . Fabricator Hacks . | . . . . . . . Repair Station Hacks . | . . . . . . . Recycling Unit Hacks 6 | . 2 . . 4 . . Retrieve Components 6 | . 2 . . 4 . . Scanalyzer . | . . . . . . . Garrison Access Hacks . | . . . . . . . Unauthorized Hacks 14 | . 8 . . 6 . . Terminals 13 | . 8 . . 5 . . Botnet 13 | . 8 . . 5 . . Fabricators . | . . . . . . . Repair Stations . | . . . . . . . Recycling Units 1 | . . . . 1 . . Reject 1 | . . . . 1 . . Scanalyzers . | . . . . . . . Garrison Access . | . . . . . . . Data Cores Recovered . | . . . . . . . Used . | . . . . . . . Hacking Detections 13 | . 3 . . 7 . 3 Full Trace Events 6 | . 1 . . 2 . 3 Feedback Events 2 | . 1 . . . . 1 Corruption 2 | . 1 . . . . 1 Feedback Blocked . | . . . . . . . Robot Schematics Acquired . | . . . . . . . Robots Built . | . . . . . . . Authchips . | . . . . . . . Time . | . . . . . . . Total Robot Build Rating . | . . . . . . . Part Schematics Acquired 4 | . . . . 2 . 2 Parts Built . | . . . . . . . Authchips . | . . . . . . . Time . | . . . . . . . Total Part Build Rating . | . . . . . . . Part Studies Acquired . | . . . . . . . Parts Repaired . | . . . . . . . Time . | . . . . . . . Parts Recycled . | . . . . . . . Recycled Matter . | . . . . . . . Retrieved Matter . | . . . . . . . Retrieved Components 19 | . 9 . . 10 . . Parts Scanalyzed . | . . . . . . . Part Schematics Acquired . | . . . . . . . Parts Damaged . | . . . . . . . Bothacking | -11 -10 -10 -10 -9 -9 -6 ------------ Run | Yrd Mat Min Sub Rec Scr Fac Used RIF Installer . | . . . . . . . Robots Hacked . | . . . . . . . Non-combat . | . . . . . . . Combat . | . . . . . . . Robot Hacks Applied . | . . . . . . . Relay Couplers Released . | . . . . . . . Fabnet Peak Effective % . | . . . . . . . Robots Rewired . | . . . . . . . Allies Hacked . | . . . . . . . Hacks Repelled . | . . . . . . . Allies | -11 -10 -10 -10 -9 -9 -6 -------- Run | Yrd Mat Min Sub Rec Scr Fac Total Allies . | . . . . . . . Largest Group . | . . . . . . . Highest-Rated Group . | . . . . . . . Highest-Rated Ally . | . . . . . . . Total Orders . | . . . . . . . Ally Attacks . | . . . . . . . Total Damage . | . . . . . . . Kills . | . . . . . . . Allies Corrupted . | . . . . . . . Allies Melted . | . . . . . . . Intel | -11 -10 -10 -10 -9 -9 -6 ------- Run | Yrd Mat Min Sub Rec Scr Fac Active Infowar (turns) 11911 | . 907 860 2956 1699 1369 4120 Optics 2 | . . . 2 . . . Sensors 680 | . 680 . . . . . Structural 8252 | . 907 860 2956 1699 1369 461 Traps 4015 | . . . . . . 4015 Robot Analysis Total 3 | . 1 . . 2 . . Derelict Logs Recovered 1 | . . . 1 . . . Drone Launches . | . . . . . . . Drone Recoveries . | . . . . . . . Exploration | -11 -10 -10 -10 -9 -9 -6 ------------- Run | Yrd Mat Min Sub Rec Scr Fac Turns Passed 12312 | 150 1044 860 2956 1699 1369 4234 Spaces Moved 4795 | 71 559 499 1441 726 541 958 Core 20 | 9 . . . . . 11 Treads 4775 | 62 559 499 1441 726 541 947 Legs . | . . . . . . . Wheels . | . . . . . . . Hover . | . . . . . . . Flight . | . . . . . . . Fastest Speed 50 | 50 160 160 160 160 160 225 Average Speed 228 | 146 160 160 178 226 248 376 Slowest Speed 1600 | 160 160 160 360 360 360 1600 Overloaded Moves . | . . . . . . . Propulsion Burnouts . | . . . . . . . Robots Hopped . | . . . . . . . Potential Cave-ins 1 | . . . 1 . . . Cave-ins Triggered . | . . . . . . . Exploration Rate (%) 66 | 4 96 99 83 99 51 35 Regions Visited 6 Branch Regions 4 Pre-discovered Areas . | . . . . . . . Known Exits Taken 6 | 1 1 1 1 1 1 . Unknown Exits Taken . | . . . . . . . Scrap Searched 16 | . . . 7 . 9 . Spaces Dug 6 | . . . 6 . . . Terrain Destroyed 93 | . . 12 6 . . 75 Melee 3 | . . . 3 . . . Projectile 10 | . . . 3 . . 7 AOE 80 | . . 12 . . . 68 Terrain Rammed . | . . . . . . . Walls Destroyed . | . . . . . . . Machines Disabled . | . . . . . . . Actions | -11 -10 -10 -10 -9 -9 -6 --------- Run | Yrd Mat Min Sub Rec Scr Fac Total 5528 | 95 636 535 1634 774 570 1284 Wait 232 | . 16 10 76 28 . 102 Move 4789 | 70 558 498 1440 725 540 958 Hop . | . . . . . . . Pick Up 78 | 8 14 4 4 7 14 27 Fast Attach 4 | . 2 . 1 . 1 . Attach 39 | 6 . 1 2 . . 30 Detach 1 | . . . . . . 1 Swap 37 | . 6 5 18 1 7 . Drop 32 | . 4 4 11 4 8 1 Fire 284 | 11 36 13 77 7 . 140 Melee 24 | . . . 5 2 . 17 Ram 1 | . . . . . . 1 Kick . | . . . . . . . Crush 7 | . . . . . . 7 Escape Stasis . | . . . . . . . Rewire . | . . . . . . . Trap . | . . . . . . . Miscellaneous . | . . . . . . . Route ------- -11/Scrapyard -10/Materials (discovered 6 exits: *Mat x3 / *Min x2 / *Sub) -10/Mines (discovered 3 exits: *Mat x2 / *Sub) -10/Subcaves (discovered 3 exits: *Mat x2 / *Rec) -9/Recycling (discovered 2 exits: *Fac / *Scr) -9/Scraptown -6/Factory (discovered 5 exits: *Fac x3 / *Low x2) History --------- Turn | Location | Event 16 | -11/Scrapyard | Identified exit to Materials 16 | -11/Scrapyard | Discovered exit to Materials (range 15) 151 | -11/Scrapyard | Entered Materials 151 | -10/Materials | Evolved 1 slot: Utility x1 309 | -10/Materials | Build established: Hacker-Mutant 439 | -10/Materials | Identified exit to Materials 439 | -10/Materials | Discovered exit to Materials (range 8) 659 | -10/Materials | Identified exit to Mines 659 | -10/Materials | Discovered exit to Mines (range 6) 722 | -10/Materials | Identified exit to Subcaves 722 | -10/Materials | Discovered exit to Subcaves (range 13) 824 | -10/Materials | Discovered exit to Materials (range 5) 832 | -10/Materials | Discovered exit to Mines (range 16) 961 | -10/Materials | Discovered exit to Materials (range 15) 1051 | -10/Materials | Derelicts attacked the area 1195 | -10/Materials | Entered Mines 1240 | -10/Mines | Found a damaged Exp. Sensor Array with a note attached 1243 | -10/Mines | Found Prototype Device 1725 | -10/Mines | Discovered exit to Materials (range 7) 1909 | -10/Mines | Discovered exit to Materials (range 7) 2046 | -10/Mines | Discovered exit to Subcaves (range 6) 2055 | -10/Mines | Entered Subcaves 2822 | -10/Subcaves | Core integrity fell below 50% 2900 | -10/Subcaves | Visited 4L-MR0's lab 3021 | -10/Subcaves | Disturbed a concealed Subdweller 3509 | -10/Subcaves | Visited Clippyterm 3513 | -10/Subcaves | Learned 40 Factory zone layouts 3639 | -10/Subcaves | Shifting Twisted Machinery released Mak. Hammer 3674 | -10/Subcaves | Shifting Twisted Machinery released Sub. Monowheel 3727 | -10/Subcaves | Shifting Twisted Machinery released Spk. Treads 3731 | -10/Subcaves | Shifting Twisted Machinery released Scrap Shield 3850 | -10/Subcaves | Learned Materials trap positions 3882 | -10/Subcaves | Identified exit to Materials 3882 | -10/Subcaves | Discovered exit to Materials (range 7) 3900 | -10/Subcaves | Discovered exit to Materials (range 15) 3992 | -10/Subcaves | Disturbed a concealed Subdweller 4073 | -10/Subcaves | Shifting Twisted Machinery released Sub. Power Source 4076 | -10/Subcaves | Shifting Twisted Machinery released Sub. Laser 4248 | -10/Subcaves | Identified exit to Recycling 4248 | -10/Subcaves | Discovered exit to Recycling (range 16) 4253 | -10/Subcaves | Core integrity fell below 20% 4540 | -10/Subcaves | Found SUBCON Basin 4827 | -10/Subcaves | Build established: Derelict-Mutant 5011 | -10/Subcaves | Entered Recycling 5807 | -9/Recycling | Scanned before Scraplab entrance 5847 | -9/Recycling | Identified exit to Scraptown 5847 | -9/Recycling | Discovered exit to Scraptown (range 11) 5858 | -9/Recycling | Entered Scraplab 5988 | -9/Recycling | Identified exit to Factory 5988 | -9/Recycling | Discovered exit to Factory (range 16) 6710 | -9/Recycling | Entered Scraptown 6710 | -9/Scraptown | System corruption cleaned by C-Scrubber 6743 | -9/Scraptown | Heard Great Nut preacher, LISTEN AND RECITE! 6745 | -9/Scraptown | Received an X-ray algorithm 7088 | -9/Scraptown | Visited Red Mages 7118 | -9/Scraptown | Build established: Hacker-Mutant 7127 | -9/Scraptown | Visited Bundlers 7339 | -9/Scraptown | Visited Observation Area 7447 | -9/Scraptown | Identified exit to Factory 7447 | -9/Scraptown | Discovered exit to Factory (range 13) 8079 | -9/Scraptown | Entered Factory 8079 | -6/Factory | Evolved 8 slots: Power x1, Propulsion x2, Utility x4, Weapon x1 8080 | -6/Factory | Identified exit to Lower Caves 8080 | -6/Factory | Identified exit to Factory 8572 | -6/Factory | Lost 6 parts (1p2n3u) 8631 | -6/Factory | Lost 5 parts (2p2u1w) 8700 | -6/Factory | Discovered exit to Factory (range 10) 8934 | -6/Factory | Build established: Scavenger-Mutant 9944 | -6/Factory | Lost 4 parts (4u) 10211 | -6/Factory | Build established: Hacker-Mutant 10931 | -6/Factory | Spotted B-75 Beast 10957 | -6/Factory | Destroyed B-75 Beast 11175 | -6/Factory | System corruption reached 10% 11211 | -6/Factory | Lost 3 parts (1p2w) 11810 | -6/Factory | Lost 3 parts (1p1n1u) 11987 | -6/Factory | Core integrity fell below 50% 12097 | -6/Factory | Garrison activated, responded to threat 12263 | -6/Factory | Core integrity fell below 20% 12287 | -6/Factory | Lost 3 parts (1u2w) 12313 | -6/Factory | Destroyed by L-41 Fighter with Axe Last Messages --------------- 12244_ K-01 Serf collects debris. 12250_ GVFDN8VFGK>BM=0ZX4C|IHHKM: 12251_ K-01 Serf collects debris. 12253_ Power Maul destroyed. 12253_ System corrupted by crushing effect (+2). 12255_ K-01 Serf collects debris. 12256_ Adv. Heat Sink destroyed. 12256_ Hvy. Laser destroyed. 12258_ Slammed into L-41 Fighter. 12259_ Acquired 10 matter. 12262_ Knocked back. 12280_ Adv. Treads severed. 12282_ Slammed into L-41 Fighter. 12285_ Acquired 7 matter. 12286_ R-10 Processor collects Adv. Treads. 12286_ Slammed into R-10 Processor. 12289_ System corrupted: Matter fused (-10). 12291_ Acquired 22 matter. 12297_ Slammed into L-41 Fighter. 12304_ Slammed into B-48 Gladiator. Map ----- +----------------------------------------------------+ | # #?# #????????????????????????? | | # #?# #????????????????????????? | | # ############+###?????????????????????????# | | # ????????????????????????? | | # ????????????????????????? | | # # #?# #??# < | | # # #?# #??# | | # # #?# #??# | | # #############T## # """ #?# #??# | | ### # #??#### # """ ### #### | | # #?????# # """ # | | / """" #?????# # # | | # """" #?????# # """ # | | # """" #?????# + """ # | | # """" #?????# # """ + | | #####+### """" #?????# # # ####### | | ## """" #?????# ######### # | | """ ## #?????# # | | "Y ###########?????# + | | """ #???????????????# # | | #??############## #"" | | """ #??# # #"" | | """ #??# " #u ######### #"" | | """ #??# # ######### #G | | #??# #b ## # #"" | | """ #??# % %#l@ ## """ # #"" | | """ #??# !!! %+ + """ # #"" | | """ #??# !!! #R ## """ # # | | #??# """ !!! # ## # ####### | | """ #??# """ = # ## """ # # | | """ #??# """ # ## """ # # | | """ #??# # ## """ # # """" | | #??# # ## # + | | #??########%##### ##""" # # """" | | ##########???????###???# ##"Y # # | | """" #?????????????# ##""" # # """" | | ""S"" #?????????????# ## # # | | "" "" ###############m #####+### # """" | | + # | | # # """" | | """ + !!! # | | """"" # !! !![ ####### | | """"" # !! ![[ #?????? | | # ![[ ############+#########?????? | | """ # """" #???????# #?????????? | | """ # %""" #???????# """ #?????????? | | """ # """" #???????# """ #?????????? | | # % #???????# """ #?????????? | | ########## = #???????# #?????????? | | ###??????# ###### #???????# """ #?????????? | +----------------------------------------------------+ Best States ------------- Heat Dissipation 102 Energy Generation 31 Energy Capacity 510 Matter Stores 300 Matter Capacity 300 Sight Range 16 Robot Scan Range 14 Terrain Scan Density 10 Armor Coverage 450 Resistance: KI 35 Resistance: TH 35 Resistance: EX 35 Resistance: EM 35 Resistance: I 35 Resistance: S 35 Resistance: P 35 Evasion (%) 50 Recoil Reduction 3 Offensive Hacking 20 Authchip Count 4 Item Schematics ----------------- Hvy. EM Pulse Gun | -9/Recycling | Hacked Arc Projector | -9/Recycling | Hacked Phase Gun | -6/Factory | Hacked Power Sword | -6/Factory | Hacked Robot Schematics ------------------ None Fabricated ------------ Nothing Repaired ---------- Nothing Studied --------- None Alien Tech Used ----------------- None Achievements -------------- None Challenges ------------ None Game ------ Seed PotentialAnalysisTerminator Manual? 0 Play Time 00:39:54 Cumulative 313.5 hours Start 2026.01.27 @ 12:28:09 End 2026.01.27 @ 13:07:30 Sessions 1 Manual Loads 0 Difficulty Explorer Special Mode None Game No. 491 Rogue 0 Adventurer 0 Explorer 491 Win Type - Total 0 Types 0/0/0/0/0/0/0/0/0/0 Lore% 77 Gallery% 70 Achievement% 56 Wizard Run 0 Options --------- Layout 1 ASCII 0 Keyboard 0 Movement Mouse Keybinds 1 Fullscreen 1 Font 24/Smallcaps Map View 50x35 Zoom Use 0% Tactical HUD 1 Map Filters NONE Filters NONE Steam 1 RUN: 0e206ae1-3e76-4c71-968a-d04d05b47125